[Event "*** Titled Tuesday 3|2 Blitz"]
[Site "Chess.com"]
[Date "2016.10.04"]
[Round "2"]
[White "MFBerna"]
[Black "WanderingPuppet"]
[Result "0-1"]
[WhiteElo "2157"]
[BlackElo "2303"]
[TimeControl "180+2"]
[EndTime "17:23:30 PDT"]
[Termination "WanderingPuppet won by checkmate"]

1. d4 {[%clk 0:03:02]} 1... Nf6 {[%clk 0:03:00.4]} 2. c4 {[%clk 0:03:03.2]} 2...
g6 {[%clk 0:03:01.9]} 3. Nc3 {[%clk 0:03:04.6]} 3... Bg7 {[%clk 0:03:02.6]} 4.
e4 {[%clk 0:03:05.7]} 4... d6 {[%clk 0:03:04.1]} 5. Nf3 {[%clk 0:03:06.9]} 5...
O-O {[%clk 0:03:05.6]} 6. Be2 {[%clk 0:03:08]} 6... Nbd7 {[%clk 0:03:02.6]} 7.
O-O {[%clk 0:03:09.1]} 7... e5 {[%clk 0:03:04]} 8. d5 {[%clk 0:03:04.5]} 8...
Nc5 {[%clk 0:03:04.7]} 9. Qc2 {[%clk 0:03:04.6]} 9... a5 {[%clk 0:03:05]} 10. b3
{[%clk 0:03:02.3]} 10... Nh5 {[%clk 0:03:05.4]} 11. g3 {[%clk 0:02:55]} 11... h6
{[%clk 0:03:04.2]} 12. Nh4 {[%clk 0:02:48.5]} 12... Nf4 {[%clk 0:03:01.1]} 13.
Ng2 {[%clk 0:02:15.9]} 13... Nh3+ {[%clk 0:02:54.3]} 14. Kh1 {[%clk 0:02:16.3]}
14... f5 {[%clk 0:02:55.4]} 15. f3 {[%clk 0:02:02.3]} 15... c6 {[%clk
0:02:38.1]} 16. Ba3 {[%clk 0:01:45]} 16... fxe4 {[%clk 0:02:30.8]} 17. Nxe4
{[%clk 0:01:44.7]} 17... Nxe4 {[%clk 0:02:30.8]} 18. Qxe4 {[%clk 0:01:33.6]}
18... Bf5 {[%clk 0:02:29.7]} 19. Qe3 {[%clk 0:01:34.2]} 19... cxd5 {[%clk
0:02:15.4]} 20. cxd5 {[%clk 0:01:36.1]} 20... Rc8 {[%clk 0:02:16.6]} 21. Rac1
{[%clk 0:01:26.1]} 21... Qd7 {[%clk 0:01:57.3]} 22. Nh4 {[%clk 0:01:18.1]} 22...
Ng5 {[%clk 0:01:21.8]} 23. Nxf5 {[%clk 0:01:10.6]} 23... Rxc1 {[%clk 0:01:06.7]}
24. Nxh6+ {[%clk 0:00:54.5]} 24... Bxh6 {[%clk 0:01:08.6]} 25. Bxc1 {[%clk
0:00:28.5]} 25... Kg7 {[%clk 0:00:40.6]} 26. Qb6 {[%clk 0:00:21.1]} 26... Rc8
{[%clk 0:00:32.7]} 27. Bb5 {[%clk 0:00:12.8]} 27... Qe7 {[%clk 0:00:33.4]} 28.
h4 {[%clk 0:00:10.3]} 28... Nf7 {[%clk 0:00:33.4]} 29. Bxh6+ {[%clk 0:00:11.3]}
29... Nxh6 {[%clk 0:00:34.8]} 30. Bd3 {[%clk 0:00:11]} 30... Rc3 {[%clk
0:00:31.6]} 31. Be4 {[%clk 0:00:09.7]} 31... Qd7 {[%clk 0:00:15.7]} 32. Kg2
{[%clk 0:00:07]} 32... Ng8 {[%clk 0:00:13.2]} 33. Rf2 {[%clk 0:00:07.9]} 33...
Nf6 {[%clk 0:00:13.6]} 34. Qxa5 {[%clk 0:00:05.9]} 34... Rc1 {[%clk 0:00:09]}
35. Qd2 {[%clk 0:00:04.3]} 35... Ra1 {[%clk 0:00:08.9]} 36. Qb2 {[%clk
0:00:03.2]} 36... Re1 {[%clk 0:00:09.9]} 37. Qc3 {[%clk 0:00:03.9]} 37... Rxe4
{[%clk 0:00:07.9]} 38. fxe4 {[%clk 0:00:05]} 38... Nxe4 {[%clk 0:00:09.8]} 39.
Qf3 {[%clk 0:00:04.9]} 39... Nxf2 {[%clk 0:00:10.4]} 40. Kxf2 {[%clk 0:00:04.8]}
40... Qc7 {[%clk 0:00:09.2]} 41. a4 {[%clk 0:00:03.1]} 41... Qc2+ {[%clk
0:00:08.9]} 42. Kg1 {[%clk 0:00:04.3]} 42... Qc1+ {[%clk 0:00:07.6]} 43. Kg2
{[%clk 0:00:05.4]} 43... Qc2+ {[%clk 0:00:08]} 44. Kh3 {[%clk 0:00:06.7]} 44...
e4 {[%clk 0:00:08.7]} 45. Qf4 {[%clk 0:00:05.1]} 45... Qd1 {[%clk 0:00:07.1]}
46. Qxe4 {[%clk 0:00:03.2]} 46... Qf1+ {[%clk 0:00:08]} 47. Kg4 {[%clk
0:00:03.4]} 47... Qf6 {[%clk 0:00:04.7]} 48. Qf4 {[%clk 0:00:03.2]} 48... Qc3
{[%clk 0:00:04.8]} 49. b4 {[%clk 0:00:02.2]} 49... Qc2 {[%clk 0:00:04]} 50. a5
{[%clk 0:00:02.7]} 50... Qd1+ {[%clk 0:00:05]} 51. Qf3 {[%clk 0:00:04.2]} 51...
Qd4+ {[%clk 0:00:04.7]} 52. Kh3 {[%clk 0:00:05.3]} 52... Qxb4 {[%clk 0:00:03.8]}
53. Qe3 {[%clk 0:00:02.9]} 53... Qc5 {[%clk 0:00:03.3]} 54. Qe7+ {[%clk
0:00:03.1]} 54... Kh6 {[%clk 0:00:03.8]} 55. Qf8+ {[%clk 0:00:03.6]} 55... Kh7
{[%clk 0:00:04.7]} 56. Qf7+ {[%clk 0:00:03.9]} 56... Kh6 {[%clk 0:00:06.4]} 57.
Qf8+ {[%clk 0:00:04.9]} 57... Kh7 {[%clk 0:00:07.9]} 58. Qe7+ {[%clk 0:00:06.2]}
58... Kh6 {[%clk 0:00:09.1]} 59. Qxb7 {[%clk 0:00:07.3]} 59... Qxa5 {[%clk
0:00:09.6]} 60. Qf7 {[%clk 0:00:08]} 60... Qe1 {[%clk 0:00:08.8]} 61. Qf4+
{[%clk 0:00:07.8]} 61... Kh7 {[%clk 0:00:09.2]} 62. Qxd6 {[%clk 0:00:08.8]}
62... Qh1+ {[%clk 0:00:09.7]} 63. Kg4 {[%clk 0:00:09.9]} 63... Qe4+ {[%clk
0:00:10.9]} 64. Kg5 {[%clk 0:00:09.3]} 64... Qf5# {[%clk 0:00:11.5]} 0-1

[Event "*** Titled Tuesday 3|2 Blitz"]
[Site "Chess.com"]
[Date "2016.10.04"]
[Round "2"]
[White "GGuseinov"]
[Black "iturrizaga"]
[Result "1/2-1/2"]
[WhiteElo "2550"]
[BlackElo "2571"]
[TimeControl "180+2"]
[EndTime "17:23:32 PDT"]
[Termination "Game drawn by agreement"]

1. e4 {[%clk 0:02:39.8]} 1... c5 {[%clk 0:03:01.9]} 2. Nf3 {[%clk 0:02:40.6]}
2... g6 {[%clk 0:03:03.8]} 3. d4 {[%clk 0:02:39.7]} 3... cxd4 {[%clk 0:03:05.7]}
4. Qxd4 {[%clk 0:02:39.4]} 4... Nf6 {[%clk 0:03:07]} 5. Nc3 {[%clk 0:02:38.5]}
5... Nc6 {[%clk 0:03:07.5]} 6. Qa4 {[%clk 0:02:38.7]} 6... Bg7 {[%clk
0:03:08.6]} 7. e5 {[%clk 0:02:36.5]} 7... Ng8 {[%clk 0:03:10.3]} 8. Bf4 {[%clk
0:02:37]} 8... f6 {[%clk 0:03:12]} 9. exf6 {[%clk 0:02:38]} 9... Nxf6 {[%clk
0:03:13.9]} 10. O-O-O {[%clk 0:02:39]} 10... O-O {[%clk 0:03:14.4]} 11. Bc4+
{[%clk 0:02:39.8]} 11... Kh8 {[%clk 0:03:15.7]} 12. Rhe1 {[%clk 0:02:40.8]}
12... a6 {[%clk 0:03:10]} 13. Bb3 {[%clk 0:02:25.2]} 13... Qb6 {[%clk
0:02:58.7]} 14. Be3 {[%clk 0:02:15.5]} 14... Qc7 {[%clk 0:02:53]} 15. Qh4 {[%clk
0:02:15.9]} 15... e6 {[%clk 0:02:51.3]} 16. Bf4 {[%clk 0:02:03.6]} 16... Qa5
{[%clk 0:02:47.9]} 17. Bd6 {[%clk 0:01:59.4]} 17... Re8 {[%clk 0:02:47.5]} 18.
Ng5 {[%clk 0:01:54.7]} 18... h6 {[%clk 0:02:46.5]} 19. Nf7+ {[%clk 0:01:34.3]}
19... Kh7 {[%clk 0:02:47]} 20. g4 {[%clk 0:01:18]} 20... Ne7 {[%clk 0:02:32.1]}
21. f4 {[%clk 0:01:03.1]} 21... Neg8 {[%clk 0:01:51.9]} 22. Ng5+ {[%clk
0:01:02.3]} 22... Kh8 {[%clk 0:01:52.4]} 23. Nf7+ {[%clk 0:01:03.2]} 23... Kh7
{[%clk 0:01:53.9]} 24. Kb1 {[%clk 0:01:04.5]} 24... Bf8 {[%clk 0:01:52.2]} 25.
Be5 {[%clk 0:00:57.6]} 25... Be7 {[%clk 0:01:44.7]} 26. g5 {[%clk 0:00:58.8]}
26... Nh5 {[%clk 0:01:44.4]} 27. Rg1 {[%clk 0:00:54.5]} 27... Rf8 {[%clk
0:01:25.7]} 28. Nd6 {[%clk 0:00:49.5]} 28... hxg5 {[%clk 0:01:21.5]} 29. Rxg5
{[%clk 0:00:46]} 29... Bxg5 {[%clk 0:01:21.6]} 30. Qxg5 {[%clk 0:00:47.9]} 30...
Qd8 {[%clk 0:01:21.9]} 31. Qg4 {[%clk 0:00:35.6]} 31... Nh6 {[%clk 0:01:19.1]}
32. Qg2 {[%clk 0:00:30.4]} 32... Nf5 {[%clk 0:01:19.4]} 33. Nce4 {[%clk
0:00:25.8]} 33... Nxd6 {[%clk 0:01:19.2]} 34. Ng5+ {[%clk 0:00:26.7]} 34... Kh6
{[%clk 0:01:17.3]} 35. Bxd6 {[%clk 0:00:27.6]} 35... Rf5 {[%clk 0:01:17.1]} 36.
h4 {[%clk 0:00:27.3]} 36... a5 {[%clk 0:01:17.4]} 37. c3 {[%clk 0:00:26.7]}
37... Ra6 {[%clk 0:01:18.1]} 38. Bc2 {[%clk 0:00:26.7]} 38... Rxd6 {[%clk
0:01:12.4]} 39. Rxd6 {[%clk 0:00:26.8]} 39... Nxf4 {[%clk 0:01:11.5]} 40. Qd2
{[%clk 0:00:24.7]} 40... Rf6 {[%clk 0:01:02.8]} 41. Nxe6 {[%clk 0:00:25.7]}
41... Qe7 {[%clk 0:00:49.8]} 42. Rd4 {[%clk 0:00:08.8]} 42... dxe6 {[%clk
0:00:39.5]} 43. Rxf4 {[%clk 0:00:08.9]} 43... Kg7 {[%clk 0:00:41.2]} 44. b3
{[%clk 0:00:07.3]} 44... e5 {[%clk 0:00:41.5]} 45. Rxf6 {[%clk 0:00:08]} 45...
Qxf6 {[%clk 0:00:43.4]} 46. Qg5 {[%clk 0:00:09.4]} 46... Bf5 {[%clk 0:00:36.7]}
47. Bxf5 {[%clk 0:00:07.2]} 47... Qxf5+ {[%clk 0:00:36.9]} 48. Kc1 {[%clk
0:00:08.8]} 48... Qf1+ {[%clk 0:00:35.9]} 49. Kd2 {[%clk 0:00:09.9]} 49... Qf2+
{[%clk 0:00:36.7]} 50. Kd3 {[%clk 0:00:11.2]} 50... Qf3+ {[%clk 0:00:37.1]} 51.
Kd2 {[%clk 0:00:09.8]} 51... Qf2+ {[%clk 0:00:34.2]} 52. Kd3 {[%clk 0:00:10.8]}
52... Qf3+ {[%clk 0:00:35.2]} 53. Qe3 {[%clk 0:00:09.5]} 53... Qd5+ {[%clk
0:00:33.7]} 54. Ke2 {[%clk 0:00:10.3]} 54... Qg2+ {[%clk 0:00:34.2]} 55. Kd3
{[%clk 0:00:11.4]} 55... Kf6 {[%clk 0:00:34.3]} 56. Qb6+ {[%clk 0:00:12.2]}
56... Kf5 {[%clk 0:00:35.6]} 57. Qxa5 {[%clk 0:00:12.1]} 57... Qe4+ {[%clk
0:00:36.7]} 58. Kd2 {[%clk 0:00:13.2]} 58... Qxh4 {[%clk 0:00:38]} 59. Qd5
{[%clk 0:00:12.5]} 59... Qf2+ {[%clk 0:00:38.8]} 60. Kd3 {[%clk 0:00:13]} 60...
Qf1+ {[%clk 0:00:34.7]} 61. Kd2 {[%clk 0:00:14]} 61... Qf2+ {[%clk 0:00:33.2]}
62. Kd3 {[%clk 0:00:13.9]} 62... Qf1+ {[%clk 0:00:21.3]} 63. Kd2 {[%clk
0:00:13.5]} 1/2-1/2

[Event "*** Titled Tuesday 3|2 Blitz"]
[Site "Chess.com"]
[Date "2016.10.04"]
[Round "2"]
[White "Fins0905"]
[Black "psv98"]
[Result "0-1"]
[WhiteElo "2473"]
[BlackElo "2609"]
[TimeControl "180+2"]
[EndTime "17:23:58 PDT"]
[Termination "psv98 won by resignation"]

1. d4 {[%clk 0:03:02]} 1... g6 {[%clk 0:02:58.7]} 2. e4 {[%clk 0:03:01.5]} 2...
Bg7 {[%clk 0:02:59.7]} 3. Nc3 {[%clk 0:03:02]} 3... d6 {[%clk 0:03:00.8]} 4. Nf3
{[%clk 0:03:02]} 4... a6 {[%clk 0:03:01.4]} 5. a4 {[%clk 0:03:03]} 5... Nf6
{[%clk 0:03:01.7]} 6. Be2 {[%clk 0:03:03.1]} 6... O-O {[%clk 0:03:01.9]} 7. O-O
{[%clk 0:03:03.9]} 7... Bg4 {[%clk 0:02:59.8]} 8. Be3 {[%clk 0:03:03.8]} 8...
Nc6 {[%clk 0:02:58.7]} 9. Qd2 {[%clk 0:02:54.9]} 9... e5 {[%clk 0:02:41.3]} 10.
dxe5 {[%clk 0:02:49]} 10... dxe5 {[%clk 0:02:38]} 11. Rad1 {[%clk 0:02:43.3]}
11... Bxf3 {[%clk 0:02:34.2]} 12. Bxf3 {[%clk 0:02:42.1]} 12... Qe7 {[%clk
0:02:24.3]} 13. Bg5 {[%clk 0:02:19.7]} 13... Nd4 {[%clk 0:02:03]} 14. Nd5 {[%clk
0:02:12.2]} 14... Qd6 {[%clk 0:02:02.7]} 15. Nxf6+ {[%clk 0:01:31.5]} 15... Bxf6
{[%clk 0:02:04.6]} 16. Bg4 {[%clk 0:01:10.6]} 16... h5 {[%clk 0:01:20.7]} 17.
Bh3 {[%clk 0:00:58.6]} 17... Rad8 {[%clk 0:00:57]} 18. Kh1 {[%clk 0:00:29.7]}
18... Qe7 {[%clk 0:00:55.5]} 19. Bxf6 {[%clk 0:00:29.5]} 19... Qxf6 {[%clk
0:00:57.4]} 20. Qc3 {[%clk 0:00:20.3]} 20... c6 {[%clk 0:00:36]} 21. Qc4 {[%clk
0:00:21.2]} 21... b5 {[%clk 0:00:33.4]} 22. axb5 {[%clk 0:00:21.2]} 22... cxb5
{[%clk 0:00:35.3]} 23. Qd3 {[%clk 0:00:20.1]} 23... Ne6 {[%clk 0:00:29.7]} 24.
Qe3 {[%clk 0:00:20.1]} 24... Nf4 {[%clk 0:00:29.1]} 25. Bd7 {[%clk 0:00:15.1]}
25... Qe7 {[%clk 0:00:28.8]} 26. Bh3 {[%clk 0:00:13]} 26... Rxd1 {[%clk
0:00:25.4]} 27. Rxd1 {[%clk 0:00:13.7]} 27... Rd8 {[%clk 0:00:27]} 28. Rd2
{[%clk 0:00:14.1]} 28... Kg7 {[%clk 0:00:26.5]} 29. Kg1 {[%clk 0:00:14.4]} 29...
a5 {[%clk 0:00:23.2]} 30. Kf1 {[%clk 0:00:14.3]} 30... b4 {[%clk 0:00:22.8]} 31.
b3 {[%clk 0:00:14.9]} 31... Rxd2 {[%clk 0:00:20.7]} 32. Qxd2 {[%clk 0:00:15.8]}
32... Nxh3 {[%clk 0:00:15.1]} 33. gxh3 {[%clk 0:00:16.9]} 33... Qh4 {[%clk
0:00:15.9]} 34. Qe3 {[%clk 0:00:17.5]} 34... Qf4 {[%clk 0:00:10.3]} 35. Qc5
{[%clk 0:00:13.5]} 35... Qxh2 {[%clk 0:00:09.8]} 36. Qxa5 {[%clk 0:00:14.1]}
36... Qh1+ {[%clk 0:00:10.1]} 37. Ke2 {[%clk 0:00:14.6]} 37... Qxe4+ {[%clk
0:00:12]} 38. Kf1 {[%clk 0:00:14.6]} 38... Qh1+ {[%clk 0:00:12.5]} 39. Ke2
{[%clk 0:00:15.6]} 39... Qe4+ {[%clk 0:00:14.2]} 40. Kf1 {[%clk 0:00:17.1]}
40... g5 {[%clk 0:00:12.8]} 41. Qc5 {[%clk 0:00:16.2]} 41... Kg6 {[%clk
0:00:12.5]} 42. Qd6+ {[%clk 0:00:16.4]} 42... f6 {[%clk 0:00:13.6]} 43. Qf8
{[%clk 0:00:15.1]} 43... Qh1+ {[%clk 0:00:11.8]} 44. Ke2 {[%clk 0:00:16.4]}
44... Qe4+ {[%clk 0:00:13.7]} 45. Kf1 {[%clk 0:00:17.8]} 45... Kf5 {[%clk
0:00:08.6]} 46. Qh6 {[%clk 0:00:15.9]} 46... Qh1+ {[%clk 0:00:07.7]} 47. Ke2
{[%clk 0:00:16.9]} 47... Qe4+ {[%clk 0:00:09.3]} 48. Kd2 {[%clk 0:00:17.3]}
48... Qf3 {[%clk 0:00:07.4]} 49. Ke1 {[%clk 0:00:13.7]} 49... Qxh3 {[%clk
0:00:07.5]} 50. Qh8 {[%clk 0:00:14.5]} 50... Qh1+ {[%clk 0:00:07.4]} 51. Kd2
{[%clk 0:00:15.4]} 51... Qd5+ {[%clk 0:00:07.8]} 52. Ke1 {[%clk 0:00:16.8]}
52... h4 {[%clk 0:00:05.4]} 53. Qh6 {[%clk 0:00:13.5]} 53... Qe4+ {[%clk
0:00:05.9]} 54. Kd2 {[%clk 0:00:14.6]} 54... Qd4+ {[%clk 0:00:07.2]} 55. Ke1
{[%clk 0:00:15.8]} 55... Ke6 {[%clk 0:00:08.4]} 56. Qh7 {[%clk 0:00:16.2]} 56...
Qa1+ {[%clk 0:00:07.8]} 57. Ke2 {[%clk 0:00:17.4]} 57... Qd4 {[%clk 0:00:09.5]}
58. Qg8+ {[%clk 0:00:18.1]} 58... Kf5 {[%clk 0:00:08.2]} 59. Qh8 {[%clk
0:00:17.3]} 59... e4 {[%clk 0:00:06.6]} 60. Qh6 {[%clk 0:00:14.2]} 60... Qd7
{[%clk 0:00:05.2]} 61. Qh8 {[%clk 0:00:13.1]} 61... Qb5+ {[%clk 0:00:06.1]} 62.
Ke1 {[%clk 0:00:14.1]} 62... Qd7 {[%clk 0:00:07.5]} 63. Qh5 {[%clk 0:00:14.6]}
63... Kf4 {[%clk 0:00:07.3]} 64. Qe2 {[%clk 0:00:15]} 64... Qd4 {[%clk 0:00:05]}
65. Qb5 {[%clk 0:00:08.8]} 65... f5 {[%clk 0:00:05.4]} 66. Qb8+ {[%clk
0:00:08.8]} 66... Kg4 {[%clk 0:00:06.8]} 67. Qh2 {[%clk 0:00:09.5]} 67... Qc3+
{[%clk 0:00:06.3]} 68. Kd1 {[%clk 0:00:09]} 68... Qf3+ {[%clk 0:00:07.4]} 69.
Ke1 {[%clk 0:00:09.9]} 69... h3 {[%clk 0:00:08.8]} 70. Qc7 {[%clk 0:00:08.6]}
70... e3 {[%clk 0:00:06.9]} 71. Qc4+ {[%clk 0:00:07.5]} 71... Qe4 {[%clk
0:00:03.5]} 72. Qe2+ {[%clk 0:00:05.2]} 72... Kf4 {[%clk 0:00:05.1]} 73. Kd1
{[%clk 0:00:04.6]} 73... Qh1+ {[%clk 0:00:05.6]} 0-1

[Event "*** Titled Tuesday 3|2 Blitz"]
[Site "Chess.com"]
[Date "2016.10.04"]
[Round "3"]
[White "awb2000"]
[Black "elefante33"]
[Result "0-1"]
[WhiteElo "2435"]
[BlackElo "2482"]
[TimeControl "180+2"]
[EndTime "17:31:13 PDT"]
[Termination "elefante33 won by resignation"]

1. Nf3 {[%clk 0:03:01.8]} 1... c5 {[%clk 0:02:56.6]} 2. c3 {[%clk 0:03:01]} 2...
d5 {[%clk 0:02:51.5]} 3. d4 {[%clk 0:03:00.6]} 3... cxd4 {[%clk 0:02:50.9]} 4.
cxd4 {[%clk 0:02:59.2]} 4... Nf6 {[%clk 0:02:52.1]} 5. Nc3 {[%clk 0:02:59.7]}
5... Nc6 {[%clk 0:02:53.1]} 6. h3 {[%clk 0:02:59.3]} 6... e6 {[%clk 0:02:52]} 7.
Bg5 {[%clk 0:02:58.3]} 7... Qb6 {[%clk 0:02:51]} 8. Rb1 {[%clk 0:02:40.5]} 8...
Ne4 {[%clk 0:02:49.8]} 9. e3 {[%clk 0:02:29.2]} 9... Bb4 {[%clk 0:02:48.4]} 10.
Rc1 {[%clk 0:02:28.1]} 10... Qa5 {[%clk 0:02:45.9]} 11. Qb3 {[%clk 0:02:28.3]}
11... Bd7 {[%clk 0:02:43.2]} 12. Bd3 {[%clk 0:02:25.1]} 12... Nxd4 {[%clk
0:01:53.5]} 13. exd4 {[%clk 0:02:19.5]} 13... Ba4 {[%clk 0:01:52.7]} 14. Bb5+
{[%clk 0:01:15.8]} 14... Qxb5 {[%clk 0:01:52.7]} 15. Bd2 {[%clk 0:01:13]} 15...
Nxc3 {[%clk 0:01:46.6]} 0-1

[Event "*** Titled Tuesday 3|2 Blitz"]
[Site "Chess.com"]
[Date "2016.10.04"]
[Round "3"]
[White "FearNoEvil12"]
[Black "Iwannabetheguy"]
[Result "0-1"]
[WhiteElo "2020"]
[BlackElo "2004"]
[TimeControl "180+2"]
[EndTime "17:31:48 PDT"]
[Termination "Iwannabetheguy won by resignation"]

1. e4 {[%clk 0:03:01.9]} 1... e5 {[%clk 0:03:00.7]} 2. d4 {[%clk 0:03:03]} 2...
exd4 {[%clk 0:03:00.7]} 3. Bc4 {[%clk 0:03:04.7]} 3... Nc6 {[%clk 0:03:01.1]} 4.
Nf3 {[%clk 0:03:06.2]} 4... Nf6 {[%clk 0:03:02.1]} 5. e5 {[%clk 0:03:07.7]} 5...
d5 {[%clk 0:03:02.5]} 6. Bb5 {[%clk 0:03:09.3]} 6... Ne4 {[%clk 0:03:02.6]} 7.
Nxd4 {[%clk 0:03:10.9]} 7... Bc5 {[%clk 0:03:03.9]} 8. O-O {[%clk 0:03:09.6]}
8... O-O {[%clk 0:03:03.1]} 9. Nxc6 {[%clk 0:03:08.5]} 9... bxc6 {[%clk
0:03:02.5]} 10. Bxc6 {[%clk 0:03:10]} 10... Ba6 {[%clk 0:02:59.8]} 11. Qxd5
{[%clk 0:03:10.9]} 11... Bxf1 {[%clk 0:02:42.6]} 12. Qxe4 {[%clk 0:03:11.6]}
12... Ba6 {[%clk 0:01:59.7]} 13. Nc3 {[%clk 0:03:12]} 13... Rb8 {[%clk
0:01:53.5]} 14. Bf4 {[%clk 0:02:47.4]} 14... Rxb2 {[%clk 0:01:47.5]} 15. Rd1
{[%clk 0:02:33.6]} 15... Qb8 {[%clk 0:01:28.2]} 16. Na4 {[%clk 0:02:09.5]} 16...
Rb1 {[%clk 0:01:27]} 17. Qe1 {[%clk 0:02:00]} 17... Rxd1 {[%clk 0:01:26.2]} 18.
Qxd1 {[%clk 0:02:01.5]} 18... Be7 {[%clk 0:01:19.3]} 19. Nc3 {[%clk 0:01:59.5]}
19... Rd8 {[%clk 0:01:16.7]} 20. Qf3 {[%clk 0:01:57.3]} 20... Qb2 {[%clk
0:01:13.9]} 21. g3 {[%clk 0:01:49.7]} 21... Qa1+ {[%clk 0:01:05.7]} 22. Kg2
{[%clk 0:01:49.1]} 22... Bf1+ {[%clk 0:01:07.2]} 23. Kg1 {[%clk 0:01:48.8]}
23... Bh3+ {[%clk 0:01:08.1]} 0-1

[Event "*** Titled Tuesday 3|2 Blitz"]
[Site "Chess.com"]
[Date "2016.10.04"]
[Round "3"]
[White "Rating-Schmating"]
[Black "Kawhi_Leonard2"]
[Result "0-1"]
[WhiteElo "2219"]
[BlackElo "2016"]
[TimeControl "180+2"]
[EndTime "17:32:06 PDT"]
[Termination "Kawhi_Leonard2 won by resignation"]

1. e4 {[%clk 0:03:01.9]} 1... c5 {[%clk 0:03:00.4]} 2. Nf3 {[%clk 0:03:01.5]}
2... d6 {[%clk 0:03:01.8]} 3. d4 {[%clk 0:03:01.5]} 3... cxd4 {[%clk 0:03:03.7]}
4. Nxd4 {[%clk 0:03:01.4]} 4... Nf6 {[%clk 0:03:05.2]} 5. Nc3 {[%clk 0:03:02.8]}
5... g6 {[%clk 0:03:06.6]} 6. Be2 {[%clk 0:03:02.7]} 6... Bg7 {[%clk 0:03:08]}
7. Be3 {[%clk 0:03:04]} 7... O-O {[%clk 0:03:08.3]} 8. O-O {[%clk 0:03:05.2]}
8... Nc6 {[%clk 0:03:09.5]} 9. f4 {[%clk 0:03:03.7]} 9... Qb6 {[%clk 0:03:09.3]}
10. Na4 {[%clk 0:03:00.6]} 10... Qa5 {[%clk 0:03:07]} 11. Nxc6 {[%clk
0:02:57.7]} 11... bxc6 {[%clk 0:03:05.9]} 12. Nc3 {[%clk 0:02:57.9]} 12... Rb8
{[%clk 0:03:04.9]} 13. Rb1 {[%clk 0:02:50.8]} 13... Be6 {[%clk 0:03:03.3]} 14.
a3 {[%clk 0:02:50.1]} 14... Rxb2 {[%clk 0:02:59.7]} 15. Rxb2 {[%clk 0:02:49.4]}
15... Qxc3 {[%clk 0:03:00.6]} 16. Qd4 {[%clk 0:02:44.8]} 16... Nxe4 {[%clk
0:02:43.2]} 17. Qxc3 {[%clk 0:02:26.3]} 17... Nxc3 {[%clk 0:02:43.7]} 18. Bd3
{[%clk 0:02:22.2]} 18... Ne2+ {[%clk 0:02:43.2]} 19. Bxe2 {[%clk 0:02:20.6]}
19... Bxb2 {[%clk 0:02:45.1]} 20. Bxa7 {[%clk 0:02:21.1]} 20... Bxa3 {[%clk
0:02:44.8]} 21. Ra1 {[%clk 0:02:20.6]} 21... Bb2 {[%clk 0:02:44.1]} 22. Rb1
{[%clk 0:02:20.9]} 22... Ra8 {[%clk 0:02:38.4]} 23. Be3 {[%clk 0:02:15.2]} 23...
Ra1 {[%clk 0:02:36]} 24. Rxa1 {[%clk 0:02:15.1]} 24... Bxa1 {[%clk 0:02:36.9]}
25. Kf2 {[%clk 0:02:15.5]} 25... f5 {[%clk 0:02:33.2]} 26. Bb6 {[%clk
0:02:13.1]} 26... c5 {[%clk 0:02:33]} 27. Bb5 {[%clk 0:02:12.2]} 27... Kf7
{[%clk 0:02:33.5]} 28. Ba5 {[%clk 0:02:04.4]} 28... Bd5 {[%clk 0:02:33.6]} 29.
Bd3 {[%clk 0:02:01]} 29... Bd4+ {[%clk 0:02:33.6]} 30. Kf1 {[%clk 0:02:02.1]}
30... Be4 {[%clk 0:02:29.4]} 31. g3 {[%clk 0:01:53.7]} 31... d5 {[%clk
0:02:27.4]} 32. Ke2 {[%clk 0:01:50]} 32... c4 {[%clk 0:02:26.3]} 33. Bxe4 {[%clk
0:01:48.5]} 33... fxe4 {[%clk 0:02:26]} 34. c3 {[%clk 0:01:46.3]} 34... Bc5
{[%clk 0:02:24.5]} 35. h3 {[%clk 0:01:46.6]} 35... h5 {[%clk 0:02:24.3]} 36. g4
{[%clk 0:01:47]} 36... Ke6 {[%clk 0:02:20.4]} 37. Bc7 {[%clk 0:01:46.1]} 37...
Bd6 {[%clk 0:02:18.5]} 38. f5+ {[%clk 0:01:37.8]} 38... gxf5 {[%clk 0:02:18.5]}
39. Bxd6 {[%clk 0:01:37.6]} 39... exd6 {[%clk 0:02:18.2]} 40. gxh5 {[%clk
0:01:38.4]} 40... Kf6 {[%clk 0:02:18.4]} 41. h4 {[%clk 0:01:39]} 41... f4 {[%clk
0:02:19.1]} 42. Kf2 {[%clk 0:01:39.5]} 42... Kg7 {[%clk 0:02:19.2]} 43. Ke2
{[%clk 0:01:39]} 43... Kh6 {[%clk 0:02:20.1]} 0-1

[Event "*** Titled Tuesday 3|2 Blitz"]
[Site "Chess.com"]
[Date "2016.10.04"]
[Round "3"]
[White "GulamaliRises"]
[Black "GGuseinov"]
[Result "0-1"]
[WhiteElo "2471"]
[BlackElo "2576"]
[TimeControl "180+2"]
[EndTime "17:32:25 PDT"]
[Termination "GGuseinov won by resignation"]

1. Nf3 {[%clk 0:03:02]} 1... Nf6 {[%clk 0:02:53]} 2. c4 {[%clk 0:03:02.3]} 2...
g6 {[%clk 0:02:48.7]} 3. d4 {[%clk 0:03:00.3]} 3... Bg7 {[%clk 0:02:50.6]} 4. g3
{[%clk 0:03:01.9]} 4... O-O {[%clk 0:02:38]} 5. Bg2 {[%clk 0:03:03.1]} 5... c5
{[%clk 0:02:38.2]} 6. d5 {[%clk 0:02:28.7]} 6... b5 {[%clk 0:02:23.9]} 7. cxb5
{[%clk 0:02:21.3]} 7... Qa5+ {[%clk 0:02:22.9]} 8. Bd2 {[%clk 0:02:17.1]} 8...
Qxb5 {[%clk 0:02:21.2]} 9. Bc3 {[%clk 0:01:39.4]} 9... Bb7 {[%clk 0:02:13.8]}
10. Na3 {[%clk 0:01:39.7]} 10... Qa6 {[%clk 0:02:07.9]} 11. Ne5 {[%clk 0:01:37]}
11... d6 {[%clk 0:01:58]} 12. Nec4 {[%clk 0:01:34.9]} 12... Nbd7 {[%clk
0:01:57.4]} 13. e4 {[%clk 0:01:30.7]} 13... Nb6 {[%clk 0:01:51.4]} 14. Na5
{[%clk 0:01:14.6]} 14... Nfxd5 {[%clk 0:01:40.5]} 15. Nxb7 {[%clk 0:00:46]}
15... Nxc3 {[%clk 0:01:37]} 16. Qd2 {[%clk 0:00:46.6]} 16... Qxb7 {[%clk
0:01:32.5]} 17. bxc3 {[%clk 0:00:47.8]} 17... Qa6 {[%clk 0:01:33.8]} 18. Nb1
{[%clk 0:00:39.7]} 18... Na4 {[%clk 0:01:31]} 19. Bf1 {[%clk 0:00:37.4]} 19...
Qa5 {[%clk 0:01:32.1]} 0-1